[Event "*** SCC Grand Prix: Titled Tuesday Blitz"]
[Site "Chess.com"]
[Date "2020.07.21"]
[Round "8"]
[White "TudorAnton"]
[Black "Irochka83"]
[Result "1-0"]
[WhiteElo "2504"]
[BlackElo "2346"]
[TimeControl "180+1"]
[EndTime "11:34:38 PDT"]
[Termination "TudorAnton won on time"]

1. d4 {[%clk 0:03:00.9]} 1... d5 {[%clk 0:02:59.8]} 2. c4 {[%clk 0:02:59.3]}
2... dxc4 {[%clk 0:03:00.7]} 3. e4 {[%clk 0:02:58.5]} 3... c5 {[%clk 0:02:52.4]}
4. d5 {[%clk 0:02:57.2]} 4... e6 {[%clk 0:02:52.7]} 5. Bxc4 {[%clk 0:02:56.7]}
5... Nf6 {[%clk 0:02:49.2]} 6. Nc3 {[%clk 0:02:56.1]} 6... exd5 {[%clk
0:02:49.1]} 7. exd5 {[%clk 0:02:57]} 7... Bd6 {[%clk 0:02:48.6]} 8. Nf3 {[%clk
0:02:57.5]} 8... O-O {[%clk 0:02:48.2]} 9. O-O {[%clk 0:02:57.7]} 9... h6 {[%clk
0:02:47.3]} 10. h3 {[%clk 0:02:58.2]} 10... a6 {[%clk 0:02:44.5]} 11. a4 {[%clk
0:02:57.7]} 11... Bf5 {[%clk 0:02:39.9]} 12. Re1 {[%clk 0:02:57.2]} 12... Nbd7
{[%clk 0:02:39.4]} 13. Be3 {[%clk 0:02:56.4]} 13... Qc7 {[%clk 0:02:39.3]} 14.
Qb3 {[%clk 0:02:50.1]} 14... Rad8 {[%clk 0:02:28.2]} 15. Bf1 {[%clk 0:02:45.9]}
15... Rfe8 {[%clk 0:02:00]} 16. Nd2 {[%clk 0:02:44.9]} 16... Nb6 {[%clk
0:01:53]} 17. a5 {[%clk 0:02:40.1]} 17... Nbxd5 {[%clk 0:01:51.3]} 18. Nxd5
{[%clk 0:02:30.4]} 18... Nxd5 {[%clk 0:01:51]} 19. Nc4 {[%clk 0:02:27.6]} 19...
Bh2+ {[%clk 0:01:38.4]} 20. Kh1 {[%clk 0:02:27.3]} 20... Nxe3 {[%clk 0:01:38.5]}
21. Nxe3 {[%clk 0:02:25]} 21... Be4 {[%clk 0:01:26.2]} 22. Rad1 {[%clk
0:02:17.4]} 22... Rxd1 {[%clk 0:01:13.8]} 23. Rxd1 {[%clk 0:02:13.7]} 23... Be5
{[%clk 0:01:13.3]} 24. Bc4 {[%clk 0:02:08.9]} 24... Bd4 {[%clk 0:01:08.4]} 25.
Re1 {[%clk 0:02:03.7]} 25... Qf4 {[%clk 0:00:49.5]} 26. Kg1 {[%clk 0:02:03.4]}
26... Re5 {[%clk 0:00:37]} 27. Ng4 {[%clk 0:01:54.5]} 27... Re7 {[%clk
0:00:25.4]} 28. g3 {[%clk 0:01:47.9]} 28... Qc7 {[%clk 0:00:22.5]} 29. Bxf7+
{[%clk 0:01:44.4]} 29... Rxf7 {[%clk 0:00:09.7]} 30. Rxe4 {[%clk 0:01:43.7]}
30... c4 {[%clk 0:00:10.3]} 31. Re8+ {[%clk 0:01:37.9]} 31... Kh7 {[%clk
0:00:05.8]} 32. Qc2+ {[%clk 0:01:37.5]} 32... g6 {[%clk 0:00:06.4]} 33. Kg2
{[%clk 0:01:33.8]} 33... Qc6+ {[%clk 0:00:06.3]} 34. Qe4 {[%clk 0:01:32.3]}
34... Bxb2 {[%clk 0:00:03]} 35. Qxc6 {[%clk 0:01:31.2]} 35... bxc6 {[%clk
0:00:03]} 36. Re4 {[%clk 0:01:30.1]} 36... c3 {[%clk 0:00:02.6]} 37. Rc4 {[%clk
0:01:30.3]} 37... Rf5 {[%clk 0:00:01.6]} 38. Rxc6 {[%clk 0:01:27.8]} 38... Rxa5
{[%clk 0:00:02.2]} 39. Rc7+ {[%clk 0:01:28.2]} 39... Kh8 {[%clk 0:00:02.1]} 40.
Nf6 {[%clk 0:01:28.1]} 1-0

[Event "*** SCC Grand Prix: Titled Tuesday Blitz"]
[Site "Chess.com"]
[Date "2020.07.21"]
[Round "8"]
[White "The_Machine04"]
[Black "mikheeva86"]
[Result "1-0"]
[WhiteElo "2284"]
[BlackElo "1931"]
[TimeControl "180+1"]
[EndTime "11:34:38 PDT"]
[Termination "The_Machine04 won by resignation"]

1. d4 {[%clk 0:03:00.9]} 1... Nf6 {[%clk 0:02:59.1]} 2. Bg5 {[%clk 0:03:00.4]}
2... e6 {[%clk 0:03:00]} 3. Nd2 {[%clk 0:02:57.6]} 3... Be7 {[%clk 0:02:59.7]}
4. e4 {[%clk 0:02:51.2]} 4... d5 {[%clk 0:03:00.6]} 5. e5 {[%clk 0:02:49.8]}
5... Ne4 {[%clk 0:02:58.6]} 6. Bxe7 {[%clk 0:02:48.4]} 6... Qxe7 {[%clk
0:02:54.9]} 7. Nxe4 {[%clk 0:02:48.7]} 7... dxe4 {[%clk 0:02:54.1]} 8. c3 {[%clk
0:02:48]} 8... c5 {[%clk 0:02:50.4]} 9. Ne2 {[%clk 0:02:37.7]} 9... Nc6 {[%clk
0:02:45.1]} 10. a3 {[%clk 0:02:32.4]} 10... cxd4 {[%clk 0:02:41.6]} 11. cxd4
{[%clk 0:02:31.4]} 11... O-O {[%clk 0:02:40]} 12. Qc2 {[%clk 0:02:23.9]} 12...
Qh4 {[%clk 0:02:33.5]} 13. g3 {[%clk 0:02:21.3]} 13... Qg4 {[%clk 0:02:32.9]}
14. Bg2 {[%clk 0:02:18.8]} 14... Rd8 {[%clk 0:02:29.5]} 15. Rd1 {[%clk
0:02:18.7]} 15... e3 {[%clk 0:02:01.2]} 16. fxe3 {[%clk 0:02:10.2]} 16... Bd7
{[%clk 0:01:37.7]} 17. Qe4 {[%clk 0:02:09.6]} 17... Qxe4 {[%clk 0:01:31.2]} 18.
Bxe4 {[%clk 0:02:10.5]} 18... Rac8 {[%clk 0:01:30.9]} 19. b4 {[%clk 0:02:07.4]}
19... b6 {[%clk 0:01:15.3]} 20. O-O {[%clk 0:02:06.1]} 20... Ne7 {[%clk
0:01:12.3]} 21. Rc1 {[%clk 0:02:05.3]} 21... Bb5 {[%clk 0:01:09.5]} 22. Kf2
{[%clk 0:02:02.6]} 22... Nd5 {[%clk 0:01:03.2]} 23. Bxd5 {[%clk 0:02:02]} 23...
exd5 {[%clk 0:01:02.1]} 24. Rxc8 {[%clk 0:02:01.3]} 24... Rxc8 {[%clk
0:01:01.1]} 25. Rc1 {[%clk 0:02:01.8]} 25... Rxc1 {[%clk 0:00:59.8]} 26. Nxc1
{[%clk 0:02:02.7]} 26... Kf8 {[%clk 0:00:58.5]} 27. Ne2 {[%clk 0:02:01.8]} 27...
Ke7 {[%clk 0:00:58.8]} 28. Nf4 {[%clk 0:02:01.5]} 28... Bc4 {[%clk 0:00:58.1]}
29. h4 {[%clk 0:02:01.5]} 29... a5 {[%clk 0:00:52.9]} 30. bxa5 {[%clk
0:01:57.3]} 30... bxa5 {[%clk 0:00:51.9]} 31. g4 {[%clk 0:01:54.2]} 31... f6
{[%clk 0:00:48.1]} 32. exf6+ {[%clk 0:01:50.1]} 32... Kxf6 {[%clk 0:00:46.6]}
33. Kf3 {[%clk 0:01:50.2]} 33... g6 {[%clk 0:00:44.6]} 34. e4 {[%clk 0:01:47.2]}
34... dxe4+ {[%clk 0:00:31.5]} 35. Kxe4 {[%clk 0:01:48.1]} 35... h6 {[%clk
0:00:26.1]} 36. d5 {[%clk 0:01:44.6]} 36... Bb5 {[%clk 0:00:25.1]} 37. Kd4
{[%clk 0:01:35.6]} 37... Bd7 {[%clk 0:00:24.4]} 38. g5+ {[%clk 0:01:28.6]} 38...
hxg5 {[%clk 0:00:23.8]} 39. hxg5+ {[%clk 0:01:29.5]} 39... Kxg5 {[%clk
0:00:23.4]} 40. Ke5 {[%clk 0:01:30.4]} 40... Kh4 {[%clk 0:00:11.5]} 41. Nxg6+
{[%clk 0:01:29.8]} 41... Kg5 {[%clk 0:00:10.9]} 1-0

[Event "*** SCC Grand Prix: Titled Tuesday Blitz"]
[Site "Chess.com"]
[Date "2020.07.21"]
[Round "8"]
[White "Mazetovic"]
[Black "LawrenceTrent"]
[Result "0-1"]
[WhiteElo "2656"]
[BlackElo "2570"]
[TimeControl "180+1"]
[EndTime "11:34:42 PDT"]
[Termination "LawrenceTrent won by resignation"]

1. g4 {[%clk 0:03:00.9]} 1... d5 {[%clk 0:02:59.4]} 2. Bg2 {[%clk 0:02:59.5]}
2... Bxg4 {[%clk 0:02:59.9]} 3. c4 {[%clk 0:02:57.8]} 3... d4 {[%clk 0:03:00.5]}
4. Bxb7 {[%clk 0:02:44.7]} 4... Nd7 {[%clk 0:03:00.6]} 5. d3 {[%clk 0:02:42.5]}
5... Rb8 {[%clk 0:02:58.2]} 6. Bg2 {[%clk 0:02:41.4]} 6... Ngf6 {[%clk
0:02:58.1]} 7. Nf3 {[%clk 0:02:37.6]} 7... e5 {[%clk 0:02:57.3]} 8. O-O {[%clk
0:02:23.9]} 8... Bd6 {[%clk 0:02:52.2]} 9. b3 {[%clk 0:02:16.2]} 9... Qe7 {[%clk
0:02:44.2]} 10. Nbd2 {[%clk 0:01:59.1]} 10... h6 {[%clk 0:02:40.8]} 11. Ne1
{[%clk 0:01:54.3]} 11... Rb6 {[%clk 0:02:13.7]} 12. Ne4 {[%clk 0:01:48]} 12...
Nxe4 {[%clk 0:02:11.1]} 13. dxe4 {[%clk 0:01:47.9]} 13... Bb4 {[%clk 0:02:06.3]}
14. Nd3 {[%clk 0:01:47.4]} 14... Bc3 {[%clk 0:02:05.4]} 15. Rb1 {[%clk
0:01:44.2]} 15... Qh4 {[%clk 0:01:58.9]} 16. Kh1 {[%clk 0:01:42.7]} 16... O-O
{[%clk 0:01:46.8]} 17. Bf3 {[%clk 0:01:33.7]} 17... f5 {[%clk 0:01:41.4]} 18.
Rg1 {[%clk 0:01:23.6]} 18... Bxf3+ {[%clk 0:01:36.1]} 19. exf3 {[%clk 0:01:23]}
19... fxe4 {[%clk 0:01:36.4]} 20. fxe4 {[%clk 0:01:20.5]} 20... Qxe4+ {[%clk
0:01:35.9]} 21. Rg2 {[%clk 0:01:20.7]} 21... Nc5 {[%clk 0:01:31.5]} 22. Nxc5
{[%clk 0:01:16.2]} 22... Qxb1 {[%clk 0:01:30.8]} 23. Rxg7+ {[%clk 0:01:16.4]}
23... Kh8 {[%clk 0:01:30.1]} 24. Nd3 {[%clk 0:01:12.1]} 24... Bd2 {[%clk
0:01:20.2]} 25. Qxd2 {[%clk 0:01:02.3]} 25... Kxg7 {[%clk 0:01:17.8]} 26. f3
{[%clk 0:01:00.7]} 26... e4 {[%clk 0:01:00.9]} 27. Ne5 {[%clk 0:00:50.7]} 27...
e3 {[%clk 0:00:56.1]} 28. Qe1 {[%clk 0:00:35.9]} 28... Kh7 {[%clk 0:00:50.6]}
29. Kg2 {[%clk 0:00:29.2]} 29... Qf5 {[%clk 0:00:49.8]} 30. Qg3 {[%clk
0:00:27.4]} 30... Rg8 {[%clk 0:00:49.1]} 31. Ng4 {[%clk 0:00:27.3]} 31... Rbg6
{[%clk 0:00:41.4]} 32. Qxc7+ {[%clk 0:00:26.8]} 32... R6g7 {[%clk 0:00:41.7]}
0-1

[Event "*** SCC Grand Prix: Titled Tuesday Blitz"]
[Site "Chess.com"]
[Date "2020.07.21"]
[Round "8"]
[White "felipelobo"]
[Black "NotFischer"]
[Result "0-1"]
[WhiteElo "2109"]
[BlackElo "2250"]
[TimeControl "180+1"]
[EndTime "11:34:47 PDT"]
[Termination "NotFischer won on time"]

1. e4 {[%clk 0:03:00.9]} 1... d5 {[%clk 0:02:59.2]} 2. exd5 {[%clk 0:02:59.9]}
2... Nf6 {[%clk 0:02:59.6]} 3. Nc3 {[%clk 0:02:58.3]} 3... Nxd5 {[%clk
0:02:58.7]} 4. d4 {[%clk 0:02:50.4]} 4... c5 {[%clk 0:02:57.9]} 5. dxc5 {[%clk
0:02:43.3]} 5... Nxc3 {[%clk 0:02:57]} 6. Qxd8+ {[%clk 0:02:42.1]} 6... Kxd8
{[%clk 0:02:57.9]} 7. bxc3 {[%clk 0:02:42.1]} 7... e5 {[%clk 0:02:58.4]} 8. Be3
{[%clk 0:02:40.3]} 8... Nd7 {[%clk 0:02:52.2]} 9. Rd1 {[%clk 0:02:25]} 9... Kc7
{[%clk 0:02:51.7]} 10. Bc4 {[%clk 0:02:23.6]} 10... f6 {[%clk 0:02:48.9]} 11.
Ne2 {[%clk 0:02:04]} 11... Bxc5 {[%clk 0:02:45.4]} 12. Rxd7+ {[%clk 0:01:55.8]}
12... Bxd7 {[%clk 0:02:42.3]} 13. Bxc5 {[%clk 0:01:55.4]} 13... b6 {[%clk
0:02:29.8]} 14. Be3 {[%clk 0:01:50.3]} 14... Kb7 {[%clk 0:02:15]} 15. O-O {[%clk
0:01:25.9]} 15... Rac8 {[%clk 0:02:13.7]} 16. Bd5+ {[%clk 0:01:23.9]} 16... Bc6
{[%clk 0:02:12.9]} 17. Rd1 {[%clk 0:01:01.8]} 17... Rhe8 {[%clk 0:01:35.9]} 18.
f3 {[%clk 0:00:49.7]} 18... Re7 {[%clk 0:01:35.3]} 19. Bxc6+ {[%clk 0:00:47.2]}
19... Rxc6 {[%clk 0:01:34.5]} 20. Kf2 {[%clk 0:00:40]} 20... Rc4 {[%clk
0:01:34.3]} 21. Rd8 {[%clk 0:00:25.5]} 21... Ra4 {[%clk 0:01:30]} 22. Rh8 {[%clk
0:00:24.1]} 22... h6 {[%clk 0:01:28.1]} 23. Ng3 {[%clk 0:00:20]} 23... Rxa2
{[%clk 0:01:19.9]} 24. Nf5 {[%clk 0:00:19.9]} 24... Rxc2+ {[%clk 0:01:19.4]} 25.
Kg3 {[%clk 0:00:19.3]} 25... Rd7 {[%clk 0:01:17.9]} 26. Rg8 {[%clk 0:00:17.7]}
26... Rxc3 {[%clk 0:01:17.8]} 27. Bf2 {[%clk 0:00:16.8]} 27... e4 {[%clk
0:01:14.8]} 28. Nxg7 {[%clk 0:00:15.8]} 28... e3 {[%clk 0:01:13]} 29. Be1 {[%clk
0:00:14.2]} 29... Rc1 {[%clk 0:01:12.8]} 30. Bb4 {[%clk 0:00:14]} 30... e2
{[%clk 0:01:06.3]} 31. Nf5 {[%clk 0:00:13.6]} 31... a5 {[%clk 0:01:02.2]} 0-1

[Event "*** SCC Grand Prix: Titled Tuesday Blitz"]
[Site "Chess.com"]
[Date "2020.07.21"]
[Round "8"]
[White "Tactictic"]
[Black "Borsuk_Konstantin"]
[Result "0-1"]
[WhiteElo "2389"]
[BlackElo "2565"]
[TimeControl "180+1"]
[EndTime "11:34:50 PDT"]
[Termination "Borsuk_Konstantin won by resignation"]

1. e4 {[%clk 0:03:00.9]} 1... e6 {[%clk 0:02:59.4]} 2. d4 {[%clk 0:03:00.7]}
2... d5 {[%clk 0:02:59.2]} 3. Nd2 {[%clk 0:03:01.1]} 3... Nf6 {[%clk 0:02:58.8]}
4. e5 {[%clk 0:03:01.1]} 4... Nfd7 {[%clk 0:02:59.4]} 5. Bd3 {[%clk 0:03:01.9]}
5... c5 {[%clk 0:02:59.9]} 6. c3 {[%clk 0:03:02.6]} 6... Nc6 {[%clk 0:03:00.2]}
7. Ne2 {[%clk 0:03:03.1]} 7... b6 {[%clk 0:03:00.1]} 8. f4 {[%clk 0:03:01.2]}
8... cxd4 {[%clk 0:03:00.3]} 9. cxd4 {[%clk 0:03:01.1]} 9... Nb4 {[%clk
0:03:00.9]} 10. Bb5 {[%clk 0:02:52.3]} 10... a6 {[%clk 0:02:57]} 11. Ba4 {[%clk
0:02:52.1]} 11... Nd3+ {[%clk 0:02:56.9]} 12. Kf1 {[%clk 0:02:51.4]} 12... Be7
{[%clk 0:02:48.3]} 13. Nf3 {[%clk 0:02:43.2]} 13... Nxc1 {[%clk 0:02:48]} 14.
Rxc1 {[%clk 0:02:42.3]} 14... b5 {[%clk 0:02:43]} 15. Bc2 {[%clk 0:02:41.8]}
15... Nb6 {[%clk 0:02:42.4]} 16. b3 {[%clk 0:02:40]} 16... Ba3 {[%clk
0:02:39.2]} 17. Rb1 {[%clk 0:02:39.1]} 17... Bd7 {[%clk 0:02:34.9]} 18. g4
{[%clk 0:02:35.8]} 18... h5 {[%clk 0:02:32.4]} 19. Rg1 {[%clk 0:02:29.8]} 19...
hxg4 {[%clk 0:02:29.5]} 20. Rxg4 {[%clk 0:02:30.7]} 20... g6 {[%clk 0:02:22.6]}
21. Ng5 {[%clk 0:02:28.9]} 21... Rxh2 {[%clk 0:02:16.9]} 22. Kg1 {[%clk
0:02:24.9]} 22... Rh6 {[%clk 0:02:15]} 23. Qd3 {[%clk 0:02:11.8]} 23... Qe7
{[%clk 0:02:11]} 24. b4 {[%clk 0:01:39.8]} 24... Bxb4 {[%clk 0:02:07.5]} 25. Kf2
{[%clk 0:01:24.8]} 25... Ba5 {[%clk 0:01:47.2]} 26. Rbg1 {[%clk 0:01:02.2]}
26... O-O-O {[%clk 0:01:37.2]} 27. a4 {[%clk 0:01:01.4]} 27... Kb7 {[%clk
0:01:33]} 28. Ra1 {[%clk 0:00:55.9]} 28... bxa4 {[%clk 0:01:24.6]} 29. Nc3
{[%clk 0:00:39.1]} 29... Bxc3 {[%clk 0:01:16.5]} 30. Qxc3 {[%clk 0:00:37.8]}
30... Rh2+ {[%clk 0:01:15.4]} 31. Kg3 {[%clk 0:00:34.1]} 31... Rc8 {[%clk
0:01:03.4]} 32. Qxc8+ {[%clk 0:00:33.3]} 32... Bxc8 {[%clk 0:01:04.3]} 33. Kxh2
{[%clk 0:00:33.6]} 33... Bd7 {[%clk 0:01:02.6]} 34. Rg3 {[%clk 0:00:23.7]} 34...
Bb5 {[%clk 0:01:02.3]} 35. Rc3 {[%clk 0:00:18.8]} 35... Qb4 {[%clk 0:01:01.5]}
36. Rc5 {[%clk 0:00:11.1]} 36... Qxd4 {[%clk 0:01:00.8]} 0-1

[Event "*** SCC Grand Prix: Titled Tuesday Blitz"]
[Site "Chess.com"]
[Date "2020.07.21"]
[Round "8"]
[White "MacDaddyMac"]
[Black "AungTZ"]
[Result "1-0"]
[WhiteElo "2373"]
[BlackElo "2044"]
[TimeControl "180+1"]
[EndTime "11:34:52 PDT"]
[Termination "MacDaddyMac won by checkmate"]

1. e4 {[%clk 0:03:00.9]} 1... c5 {[%clk 0:02:58.9]} 2. Nc3 {[%clk 0:03:00.8]}
2... a6 {[%clk 0:02:57.6]} 3. f4 {[%clk 0:03:01.2]} 3... e6 {[%clk 0:02:56.2]}
4. Nf3 {[%clk 0:03:02.1]} 4... d5 {[%clk 0:02:55.6]} 5. d3 {[%clk 0:03:02.7]}
5... Nc6 {[%clk 0:02:54.9]} 6. g3 {[%clk 0:03:02.6]} 6... Nf6 {[%clk 0:02:54.2]}
7. Bg2 {[%clk 0:03:03.2]} 7... Be7 {[%clk 0:02:53.9]} 8. O-O {[%clk 0:03:03.1]}
8... O-O {[%clk 0:02:53.5]} 9. h3 {[%clk 0:03:02]} 9... Rb8 {[%clk 0:02:53]} 10.
g4 {[%clk 0:03:02]} 10... b5 {[%clk 0:02:48.6]} 11. Qe1 {[%clk 0:03:01.7]} 11...
b4 {[%clk 0:02:45.9]} 12. Nd1 {[%clk 0:03:01.7]} 12... Bb7 {[%clk 0:02:42.7]}
13. g5 {[%clk 0:03:00]} 13... Nd7 {[%clk 0:02:34.8]} 14. Qg3 {[%clk 0:02:59.3]}
14... Bd6 {[%clk 0:02:28.4]} 15. e5 {[%clk 0:02:54]} 15... Be7 {[%clk
0:02:24.7]} 16. Nf2 {[%clk 0:02:54.3]} 16... Re8 {[%clk 0:02:17.4]} 17. Ng4
{[%clk 0:02:54.1]} 17... Kh8 {[%clk 0:02:11.4]} 18. Be3 {[%clk 0:02:38.1]} 18...
Nf8 {[%clk 0:02:03.6]} 19. h4 {[%clk 0:02:27.3]} 19... Nd7 {[%clk 0:01:50.7]}
20. h5 {[%clk 0:02:23.4]} 20... Rg8 {[%clk 0:01:50.5]} 21. Qh3 {[%clk
0:02:15.4]} 21... f5 {[%clk 0:01:39.4]} 22. exf6 {[%clk 0:01:58.2]} 22... gxf6
{[%clk 0:01:38.9]} 23. g6 {[%clk 0:01:57.7]} 23... f5 {[%clk 0:01:36.3]} 24. Nh6
{[%clk 0:01:57.7]} 24... Rg7 {[%clk 0:01:23.7]} 25. Ng5 {[%clk 0:01:49.2]} 25...
Bxg5 {[%clk 0:01:19]} 26. fxg5 {[%clk 0:01:50.1]} 26... Nce5 {[%clk 0:01:05.9]}
27. d4 {[%clk 0:01:19.1]} 27... cxd4 {[%clk 0:00:44]} 28. Bxd4 {[%clk 0:01:20]}
28... Qxg5 {[%clk 0:00:43.3]} 29. Nf7+ {[%clk 0:01:11.8]} 29... Rxf7 {[%clk
0:00:43.2]} 30. gxf7 {[%clk 0:01:11.1]} 30... Qf6 {[%clk 0:00:43.5]} 31. Rae1
{[%clk 0:01:04.6]} 31... Nf3+ {[%clk 0:00:42.4]} 32. Qxf3 {[%clk 0:00:51.4]}
32... Qxd4+ {[%clk 0:00:43.3]} 33. Qe3 {[%clk 0:00:51.6]} 33... Qxe3+ {[%clk
0:00:38.2]} 34. Rxe3 {[%clk 0:00:52.5]} 34... Nf8 {[%clk 0:00:38.6]} 35. Rxf5
{[%clk 0:00:44.1]} 35... Bc8 {[%clk 0:00:31.4]} 36. Rg5 {[%clk 0:00:41.7]} 36...
Nd7 {[%clk 0:00:29.7]} 37. Rg8# {[%clk 0:00:41.6]} 1-0

[Event "*** SCC Grand Prix: Titled Tuesday Blitz"]
[Site "Chess.com"]
[Date "2020.07.21"]
[Round "8"]
[White "maxip32"]
[Black "Chessbard1972"]
[Result "1-0"]
[WhiteElo "2427"]
[BlackElo "2302"]
[TimeControl "180+1"]
[EndTime "11:34:55 PDT"]
[Termination "maxip32 won by resignation"]

1. e4 {[%clk 0:03:00.9]} 1... c5 {[%clk 0:02:55.8]} 2. Nf3 {[%clk 0:03:00.8]}
2... a6 {[%clk 0:02:54.7]} 3. c4 {[%clk 0:03:00.2]} 3... e6 {[%clk 0:02:54.4]}
4. Nc3 {[%clk 0:02:59.2]} 4... Qc7 {[%clk 0:02:54.4]} 5. d4 {[%clk 0:02:56.7]}
5... cxd4 {[%clk 0:02:54.1]} 6. Nxd4 {[%clk 0:02:57.6]} 6... Nf6 {[%clk
0:02:53.9]} 7. Be2 {[%clk 0:02:56.8]} 7... b6 {[%clk 0:02:52.7]} 8. O-O {[%clk
0:02:53.2]} 8... Bb7 {[%clk 0:02:53.2]} 9. Qd3 {[%clk 0:02:47]} 9... Nc6 {[%clk
0:02:52.2]} 10. Nxc6 {[%clk 0:02:38.6]} 10... dxc6 {[%clk 0:02:50.9]} 11. Be3
{[%clk 0:02:18.3]} 11... c5 {[%clk 0:02:45.3]} 12. f4 {[%clk 0:02:16.9]} 12...
Rd8 {[%clk 0:02:44.2]} 13. Qc2 {[%clk 0:02:16.4]} 13... Be7 {[%clk 0:02:41.8]}
14. e5 {[%clk 0:02:11.5]} 14... Nd7 {[%clk 0:02:41.6]} 15. Bd3 {[%clk
0:02:06.9]} 15... g6 {[%clk 0:02:41.2]} 16. Be4 {[%clk 0:02:02.6]} 16... O-O
{[%clk 0:02:36.6]} 17. Rad1 {[%clk 0:02:01.4]} 17... f5 {[%clk 0:02:32.1]} 18.
exf6 {[%clk 0:01:59.9]} 18... Nxf6 {[%clk 0:02:31.1]} 19. Bxb7 {[%clk
0:01:00.5]} 19... Qxb7 {[%clk 0:02:29.6]} 20. Rxd8 {[%clk 0:00:58.1]} 20... Rxd8
{[%clk 0:02:27.4]} 21. Rd1 {[%clk 0:00:57.1]} 21... Ng4 {[%clk 0:02:22.1]} 22.
Rxd8+ {[%clk 0:00:53]} 22... Bxd8 {[%clk 0:02:21.6]} 23. Bc1 {[%clk 0:00:46.7]}
23... Bf6 {[%clk 0:02:19.5]} 24. h3 {[%clk 0:00:43.9]} 24... Bd4+ {[%clk
0:02:18.1]} 25. Kf1 {[%clk 0:00:38.3]} 25... Ne3+ {[%clk 0:01:56.2]} 26. Bxe3
{[%clk 0:00:35.8]} 26... Bxe3 {[%clk 0:01:56]} 27. Ne2 {[%clk 0:00:31.4]} 27...
b5 {[%clk 0:01:44.8]} 28. Qd3 {[%clk 0:00:29.8]} 28... Bd4 {[%clk 0:01:30.5]}
29. Nxd4 {[%clk 0:00:29.7]} 29... Qd7 {[%clk 0:01:18.6]} 30. cxb5 {[%clk
0:00:27.2]} 30... axb5 {[%clk 0:01:15.7]} 31. Qxb5 {[%clk 0:00:24.5]} 31... Qxd4
{[%clk 0:01:15.3]} 32. Qe8+ {[%clk 0:00:21.5]} 32... Kg7 {[%clk 0:01:14]} 33.
Qe7+ {[%clk 0:00:21.7]} 33... Kh6 {[%clk 0:01:06.6]} 34. Qg5+ {[%clk 0:00:21.4]}
34... Kg7 {[%clk 0:01:06]} 35. Qe5+ {[%clk 0:00:22.3]} 35... Kf7 {[%clk
0:00:58.4]} 36. Qxd4 {[%clk 0:00:20]} 36... cxd4 {[%clk 0:00:58.6]} 37. Ke2
{[%clk 0:00:20.6]} 37... e5 {[%clk 0:00:58.9]} 38. fxe5 {[%clk 0:00:20.3]} 38...
Ke6 {[%clk 0:00:59.2]} 39. Kd3 {[%clk 0:00:21.2]} 39... Kxe5 {[%clk 0:00:59.6]}
40. a4 {[%clk 0:00:22]} 40... Kd5 {[%clk 0:00:59.7]} 41. a5 {[%clk 0:00:22.4]}
41... Kc5 {[%clk 0:00:59]} 42. b4+ {[%clk 0:00:23.3]} 42... Kxb4 {[%clk
0:00:57.8]} 43. a6 {[%clk 0:00:23.4]} 1-0

[Event "*** SCC Grand Prix: Titled Tuesday Blitz"]
[Site "Chess.com"]
[Date "2020.07.21"]
[Round "8"]
[White "tylityli"]
[Black "Fortitudine"]
[Result "1-0"]
[WhiteElo "2153"]
[BlackElo "2265"]
[TimeControl "180+1"]
[EndTime "11:34:56 PDT"]
[Termination "tylityli won by resignation"]

1. d4 {[%clk 0:02:56.4]} 1... Nf6 {[%clk 0:02:59.4]} 2. c4 {[%clk 0:02:55.3]}
2... c5 {[%clk 0:02:59.1]} 3. d5 {[%clk 0:02:55.1]} 3... b5 {[%clk 0:02:59]} 4.
Nd2 {[%clk 0:02:55.2]} 4... g6 {[%clk 0:02:54.7]} 5. e4 {[%clk 0:02:50.6]} 5...
d6 {[%clk 0:02:54.4]} 6. b3 {[%clk 0:02:50.2]} 6... Bg7 {[%clk 0:02:52]} 7. Bb2
{[%clk 0:02:50.4]} 7... O-O {[%clk 0:02:52.1]} 8. cxb5 {[%clk 0:02:47.4]} 8...
a6 {[%clk 0:02:51.8]} 9. Qc2 {[%clk 0:02:47.5]} 9... Nbd7 {[%clk 0:02:46.7]} 10.
Ngf3 {[%clk 0:02:46.9]} 10... Qa5 {[%clk 0:02:43.2]} 11. a4 {[%clk 0:02:23.6]}
11... Bb7 {[%clk 0:02:40.8]} 12. Bc4 {[%clk 0:02:20.9]} 12... Ng4 {[%clk
0:02:28]} 13. Bxg7 {[%clk 0:02:18.4]} 13... Kxg7 {[%clk 0:02:28.9]} 14. O-O
{[%clk 0:02:16.4]} 14... axb5 {[%clk 0:02:04.3]} 15. Bxb5 {[%clk 0:02:11.5]}
15... Nb6 {[%clk 0:01:58.8]} 16. h3 {[%clk 0:02:06.3]} 16... Nf6 {[%clk
0:01:58.4]} 17. Nc4 {[%clk 0:02:04.7]} 17... Nxc4 {[%clk 0:01:58]} 18. bxc4
{[%clk 0:02:02.1]} 18... Ba6 {[%clk 0:01:45.8]} 19. Qb2 {[%clk 0:01:57.5]} 19...
Qb4 {[%clk 0:01:32.6]} 20. Qxb4 {[%clk 0:01:55.1]} 20... cxb4 {[%clk 0:01:33.5]}
21. e5 {[%clk 0:01:54.9]} 21... Ne4 {[%clk 0:01:29]} 22. exd6 {[%clk 0:01:51.7]}
22... Nxd6 {[%clk 0:01:23.1]} 23. Rfb1 {[%clk 0:01:39.3]} 23... Nxc4 {[%clk
0:01:19.5]} 24. Rxb4 {[%clk 0:01:35]} 24... Bxb5 {[%clk 0:00:58.9]} 25. Rxb5
{[%clk 0:01:34.5]} 25... Rfb8 {[%clk 0:00:56.9]} 26. Rxb8 {[%clk 0:01:31.2]}
26... Rxb8 {[%clk 0:00:57.8]} 27. a5 {[%clk 0:01:31.5]} 27... Ra8 {[%clk
0:00:53.2]} 28. a6 {[%clk 0:01:30.8]} 28... Nb6 {[%clk 0:00:52.4]} 29. Nd4
{[%clk 0:01:18.5]} 29... Nxd5 {[%clk 0:00:47.1]} 30. Nc6 {[%clk 0:01:16.3]}
30... e6 {[%clk 0:00:28.6]} 31. a7 {[%clk 0:01:14.3]} 31... h5 {[%clk
0:00:19.7]} 32. Rb1 {[%clk 0:01:12.3]} 32... Rc8 {[%clk 0:00:17.5]} 33. Rb8
{[%clk 0:01:10.1]} 33... Rxc6 {[%clk 0:00:15.3]} 34. a8=Q {[%clk 0:01:09.7]}
34... Rc1+ {[%clk 0:00:15.5]} 35. Kh2 {[%clk 0:01:09.4]} 1-0